Workbook

Sheet 型号
D1: 乐为美术积木 3C认证型号 商品名称 商品条码 订货号 包装尺寸 净重 毛重 粒数 颜色 建议零售价 玩具图片 装箱数 最小订量 销售建议关键词
L6: 单位：人民币，元
A7: 序号 | B7: 玩具名称 | C7: 3C认证型号 | D7: 粒数 | E7: 商品条码 | F7: 订货号 | G7: 包装尺寸毫米 | H7: 包装体积立方米 | I7: 净重 千克 | J7: 毛重 千克 | K7: 建议 零售价 | L7: 玩具说明 | M7: 玩具图片 | N7: 销售建议关键词
A8: 1 | B8: 乐为塑菱 | C8: LWSL-TE599 | D8: 599粒 | E8: 6953123800092 | F8: 00092 | G8: 227*227*60 | H8: =227*227*60/1000000000 -> 0.00309 | I8: =280/1000 -> 0.280 | J8: =475/1000 -> 0.475 | K8: 268 | L8: 乐为塑菱精品装 | N8: 高端商场，礼品，礼尚往来（送礼送聪明）
A9: 2 | B9: 乐为塑菱 | C9: LWSL523 | D9: 523粒 | E9: 6953123852312 | F9: 52312 | G9: 227*227*60 | H9: =227*227*60/1000000000 -> 0.00309 | I9: =245/1000 -> 0.245 | J9: =450/1000 -> 0.450 | K9: 220 | L9: 乐为塑菱三合一包装 | N9: 高端商场，玩具礼品，多合一精品装，心灵手巧，礼尚往来（送礼送聪明）
A10: 3 | B10: 乐为魔珠 | C10: LWMZ-XM500 | D10: 500粒 | E10: 6953123800108 | F10: 00108 | G10: 227*227*60 | H10: =227*227*60/1000000000 -> 0.00309 | I10: =447/1000 -> 0.447 | J10: =622/1000 -> 0.622 | K10: 228 | L10: 乐为魔珠精品装 | N10: 高端商场，礼品，礼尚往来（送礼送聪明）
A11: 4 | B11: 乐为魔珠 | C11: LWMZ296 | D11: 296粒 | E11: 6953123829611 | F11: 29611 | G11: 227*227*60 | H11: =227*227*60/1000000000 -> 0.00309 | I11: =262/1000 -> 0.262 | J11: =450/1000 -> 0.450 | K11: 129 | L11: 乐为魔珠三合一包装 | N11: 高端商场，玩具礼品，多合一精品装，心灵手巧，礼尚往来（送礼送聪明）
A12: 5 | B12: 乐为大魔珠 | C12: LWMZ253D | D12: 253粒 | E12: 6953123825323 | F12: 25323 | G12: 330*245*185 | H12: =330*245*185/1000000000 -> 0.01496 | I12: =1349/1000 -> 1.349 | J12: =1899/1000 -> 1.899 | K12: 288 | L12: 乐为大魔珠三合一包装 | N12: 高端商场，玩具礼品，多合一精品装，心灵手巧，礼尚往来（送礼送聪明）
A13: 6 | B13: 乐为大魔珠 | C13: LWMZ296D | D13: 296粒 | E13: 6953123829628 | F13: 29628 | G13: 330*245*185 | H13: =330*245*185/1000000000 -> 0.01496 | I13: =1575/1000 -> 1.575 | J13: =2125/1000 -> 2.125 | K13: 318 | L13: 乐为大魔珠三合一包装 | N13: 高端商场，玩具礼品，多合一精品装，心灵手巧，礼尚往来（送礼送聪明）
A14: 7 | B14: 乐为大魔珠 | C14: LWMZ332D | D14: 280粒 | E14: 6953123833229 | F14: 33229 | G14: 330*245*185 | H14: =330*245*185/1000000000 -> 0.01496 | I14: =1496/1000 -> 1.496 | J14: =2046/1000 -> 2.046 | K14: 312 | L14: 乐为大魔珠三合一包装 | N14: 高端商场，玩具礼品，多合一精品装，心灵手巧，礼尚往来（送礼送聪明）
A15: 8 | B15: 乐为大魔珠 | C15: LWMZ350D | D15: 329粒 | E15: 6953123835025 | F15: 35025 | G15: 330*245*185 | H15: =330*245*185/1000000000 -> 0.01496 | I15: =1760/1000 -> 1.760 | J15: =2310/1000 -> 2.310 | K15: 350 | L15: 乐为大魔珠三合一包装 | N15: 高端商场，玩具礼品，多合一精品装，心灵手巧，礼尚往来（送礼送聪明）
A16: 9 | B16: 乐为大魔珠 | C16: LWMZ1000D | D16: 1000粒 | E16: 6953123810015 | F16: 10015 | G16: 490*410*160 | H16: =490*410*160/1000000000 -> 0.03214 | I16: 5.365 | J16: 6.225 | K16: 800 | L16: 乐为大魔珠幼教装 | N16: 幼儿园，美术培训机构，心灵手巧，爱拼更聪明，互动更欢乐
A20: 顺颂商祺！欢迎联系！
A22: 厦门乐为坊玩具有限公司
A23: 董事：林华龙 13328318872
A24: 地址：厦门市思明区霞溪路138号之1单元
A25: 邮编：361003
A26: 电话：0592-2028610
A27: 开户行：中国农业银行厦门思明支行
A28: 账号：40342001040019452
A29: 企业法人营业执照注册号：350203200212362
A30: 组织机构代码证：69994564-8
A31: 国税地税税务登记证：350203699945648
A32: 电邮：toys@Loowi.com
A33: 网址：www.Loowi.com

Sheet 图片
D1: 乐为美术玩具之3C认证型号、商品条码、包装尺寸重量、建议零售价、销售关键词
L6: 单位：人民币，元
A7: 序号 | B7: 玩具名称 | C7: 3C认证型号 | D7: 粒数 | E7: 商品条码 | F7: 订货号 | G7: 包装尺寸毫米 | H7: 包装体积立方米 | I7: 净重 千克 | J7: 毛重 千克 | K7: 建议 零售价 | L7: 玩具说明 | M7: 玩具图片 | N7: 销售建议关键词
A8: 1 | B8: 乐为塑菱 | C8: LWSL-TE599 | D8: 599粒 | E8: 6953123800092 | F8: 00092 | G8: 227*227*60 | H8: =227*227*60/1000000000 -> 0.00309 | I8: =280/1000 -> 0.280 | J8: =475/1000 -> 0.475 | K8: 268 | L8: 乐为塑菱精品装 | N8: 高端商场，礼品，礼尚往来（送礼送聪明）
A9: 2 | B9: 乐为塑菱 | C9: LWSL523 | D9: 523粒 | E9: 6953123852312 | F9: 52312 | G9: 227*227*60 | H9: =227*227*60/1000000000 -> 0.00309 | I9: =245/1000 -> 0.245 | J9: =450/1000 -> 0.450 | K9: 220 | L9: 乐为塑菱三合一包装 | N9: 高端商场，玩具礼品，多合一精品装，心灵手巧，礼尚往来（送礼送聪明）
A10: 1 | B10: 乐为魔珠 | C10: LWMZ-XM500 | D10: 500粒 | E10: 6953123800108 | F10: 00108 | G10: 227*227*60 | H10: =227*227*60/1000000000 -> 0.00309 | I10: =447/1000 -> 0.447 | J10: =622/1000 -> 0.622 | K10: 228 | L10: 乐为魔珠精品装 | N10: 高端商场，礼品，礼尚往来（送礼送聪明）
A11: 2 | B11: 乐为魔珠 | C11: LWMZ296 | D11: 296粒 | E11: 6953123829611 | F11: 29611 | G11: 227*227*60 | H11: =227*227*60/1000000000 -> 0.00309 | I11: =262/1000 -> 0.262 | J11: =450/1000 -> 0.450 | K11: 129 | L11: 乐为魔珠三合一包装 | N11: 高端商场，玩具礼品，多合一精品装，心灵手巧，礼尚往来（送礼送聪明）
A12: 3 | B12: 乐为大魔珠 | C12: LWMZ253D | D12: 253粒 | E12: 6953123825323 | F12: 25323 | G12: 330*245*185 | H12: =330*245*185/1000000000 -> 0.01496 | I12: =1349/1000 -> 1.349 | J12: =1899/1000 -> 1.899 | K12: 288 | L12: 乐为大魔珠三合一包装 | N12: 高端商场，玩具礼品，多合一精品装，心灵手巧，礼尚往来（送礼送聪明）
A13: 4 | B13: 乐为大魔珠 | C13: LWMZ296D | D13: 296粒 | E13: 6953123829628 | F13: 29628 | G13: 330*245*185 | H13: =330*245*185/1000000000 -> 0.01496 | I13: =1575/1000 -> 1.575 | J13: =2125/1000 -> 2.125 | K13: 318 | L13: 乐为大魔珠三合一包装 | N13: 高端商场，玩具礼品，多合一精品装，心灵手巧，礼尚往来（送礼送聪明）
A14: 5 | B14: 乐为大魔珠 | C14: LWMZ332D | D14: 280粒 | E14: 6953123833229 | F14: 33229 | G14: 330*245*185 | H14: =330*245*185/1000000000 -> 0.01496 | I14: =1496/1000 -> 1.496 | J14: =2046/1000 -> 2.046 | K14: 312 | L14: 乐为大魔珠三合一包装 | N14: 高端商场，玩具礼品，多合一精品装，心灵手巧，礼尚往来（送礼送聪明）
A15: 6 | B15: 乐为大魔珠 | C15: LWMZ350D | D15: 329粒 | E15: 6953123835025 | F15: 35025 | G15: 330*245*185 | H15: =330*245*185/1000000000 -> 0.01496 | I15: =1760/1000 -> 1.760 | J15: =2310/1000 -> 2.310 | K15: 350 | L15: 乐为大魔珠三合一包装 | N15: 高端商场，玩具礼品，多合一精品装，心灵手巧，礼尚往来（送礼送聪明）
A16: 7 | B16: 乐为大魔珠 | C16: LWMZ1000D | D16: 1000粒 | E16: 6953123810015 | F16: 10015 | G16: 490*410*160 | H16: =490*410*160/1000000000 -> 0.03214 | I16: 5.365 | J16: 6.225 | K16: 800 | L16: 乐为大魔珠幼教装 | N16: 幼儿园，美术培训机构，心灵手巧，爱拼更聪明，互动更欢乐

Sheet 订货单
E1: 厦门乐为坊玩具有限公司
L3: 订货单
D4: 买方： | E4: =C19 -> 0
D5: 日期： | E5: YYYYMMDD
A7: 1、买方盖章确认订单，传真到0592-2028610（自动接收）；卖方盖章确认订单，回传给买方。
A8: 2、买方付款到卖方对公账户：www.Loowi.com/caiwu，卖方发货。
A9: 3、本订货单按___折计算。
A10: 4、首次订货，如不适销，卖方接受全部退换货；第二次订货起，卖方接受一半退换货。买方负责运费。
A11: 5、乐为美术积木热销型号图文资料，详见网页：www.Loowi.com/rexiao
A12: 6、买方未经卖方书面授权许可，不得擅自在淘宝等网店销售乐为美术积木。
B14: 包装体积： | C14: =N38 -> 0.003231 | D14: 立方米 | E14: 输入盒数后，表格将自动计算出总体积
B15: 毛重： | C15: =O38 -> 0.845 | D15: 千克 | E15: 输入盒数后，表格将自动计算出总毛重
B16: 物流费用： | D16: 元 | E16: █到付 █自提
B18: 签字/盖章 | G18: 签字/盖章
B19: 买方： | G19: 卖方：厦门乐为坊玩具有限公司 | N19: 计算物流毛重体积，需要用到的数据：
B20: 经办： | G20: 经办：林华龙 13328318872 | N20: 乐为标准纸箱，490*410*260毫米，纸箱重量0.77千克
B21: 腾讯QQ： | G21: 腾讯：QQ 200928610 | N21: 乐为桶装纸箱，675*505*215毫米，纸箱重量0.89千克
B22: 传真： | G22: 传真：0592.2028610
B23: 电邮： | G23: 电邮：toys@Loowi.com
B24: 地址： | G24: 地址：厦门市思明区霞溪路138号之1单元
L26: 单位：人民币，元 | N26: 此两列自动计算体积毛重
A27: =型号!A7 -> 序号 | B27: =型号!B7 -> 玩具名称 | C27: =型号!C7 -> 3C认证型号 | D27: =型号!F7 -> 订货号 | E27: =型号!G7 -> 包装尺寸毫米 | F27: 包装体积立方米 | G27: =型号!J7 -> 毛重 千克 | H27: =型号!K7 -> 建议 零售价 | I27: 供货折扣 | J27: 供货价 | K27: 件数 | L27: 小计 | N27: 体积小计 | O27: 毛重小计
A28: =型号!A8 -> 1 | B28: =型号!B8 -> 乐为塑菱 | C28: =型号!C8 -> LWSL-TE599 | D28: =型号!F8 -> 00092 | E28: =型号!G8 -> 227*227*60 | F28: =型号!H8 -> 0.0031 | G28: =型号!J8 -> 0.475 | H28: =型号!K8 -> 268 | J28: =H28*I28 -> 0 | L28: =J28*K28 -> 0 | N28: =F28*K28 -> 0 | O28: =G28*K28 -> 0
A29: =型号!A9 -> 2 | B29: =型号!B9 -> 乐为塑菱 | C29: =型号!C9 -> LWSL523 | D29: =型号!F9 -> 52312 | E29: =型号!G9 -> 227*227*60 | F29: =型号!H9 -> 0.0031 | G29: =型号!J9 -> 0.450 | H29: =型号!K9 -> 220 | J29: =H29*I29 -> 0 | L29: =J29*K29 -> 0 | N29: =F29*K29 -> 0 | O29: =G29*K29 -> 0
A30: =型号!A10 -> 3 | B30: =型号!B10 -> 乐为魔珠 | C30: =型号!C10 -> LWMZ-XM500 | D30: =型号!F10 -> 00108 | E30: =型号!G10 -> 227*227*60 | F30: =型号!H10 -> 0.0031 | G30: =型号!J10 -> 0.622 | H30: =型号!K10 -> 228 | J30: =H30*I30 -> 0 | L30: =J30*K30 -> 0 | N30: =F30*K30 -> 0 | O30: =G30*K30 -> 0
A31: =型号!A11 -> 4 | B31: =型号!B11 -> 乐为魔珠 | C31: =型号!C11 -> LWMZ296 | D31: =型号!F11 -> 29611 | E31: =型号!G11 -> 227*227*60 | F31: =型号!H11 -> 0.0031 | G31: =型号!J11 -> 0.450 | H31: =型号!K11 -> 129 | J31: =H31*I31 -> 0 | L31: =J31*K31 -> 0 | N31: =F31*K31 -> 0 | O31: =G31*K31 -> 0
A32: =型号!A12 -> 5 | B32: =型号!B12 -> 乐为大魔珠 | C32: =型号!C12 -> LWMZ253D | D32: =型号!F12 -> 25323 | E32: =型号!G12 -> 330*245*185 | F32: =型号!H12 -> 0.0150 | G32: =型号!J12 -> 1.899 | H32: =型号!K12 -> 288 | J32: =H32*I32 -> 0 | L32: =J32*K32 -> 0 | N32: =F32*K32 -> 0 | O32: =G32*K32 -> 0
A33: =型号!A13 -> 6 | B33: =型号!B13 -> 乐为大魔珠 | C33: =型号!C13 -> LWMZ296D | D33: =型号!F13 -> 29628 | E33: =型号!G13 -> 330*245*185 | F33: =型号!H13 -> 0.0150 | G33: =型号!J13 -> 2.125 | H33: =型号!K13 -> 318 | J33: =H33*I33 -> 0 | L33: =J33*K33 -> 0 | N33: =F33*K33 -> 0 | O33: =G33*K33 -> 0
A34: =型号!A14 -> 7 | B34: =型号!B14 -> 乐为大魔珠 | C34: =型号!C14 -> LWMZ332D | D34: =型号!F14 -> 33229 | E34: =型号!G14 -> 330*245*185 | F34: =型号!H14 -> 0.0150 | G34: =型号!J14 -> 2.046 | H34: =型号!K14 -> 312 | J34: =H34*I34 -> 0 | L34: =J34*K34 -> 0 | N34: =F34*K34 -> 0 | O34: =G34*K34 -> 0
A35: =型号!A15 -> 8 | B35: =型号!B15 -> 乐为大魔珠 | C35: =型号!C15 -> LWMZ350D | D35: =型号!F15 -> 35025 | E35: =型号!G15 -> 330*245*185 | F35: =型号!H15 -> 0.0150 | G35: =型号!J15 -> 2.310 | H35: =型号!K15 -> 350 | J35: =H35*I35 -> 0 | L35: =J35*K35 -> 0 | N35: =F35*K35 -> 0 | O35: =G35*K35 -> 0
A36: =型号!A16 -> 9 | B36: =型号!B16 -> 乐为大魔珠 | C36: =型号!C16 -> LWMZ1000D | D36: =型号!F16 -> 10015 | E36: =型号!G16 -> 490*410*160 | F36: =型号!H16 -> 0.0321 | G36: =型号!J16 -> 6.225 | H36: =型号!K16 -> 800 | J36: =H36*I36 -> 0 | L36: =J36*K36 -> 0 | N36: =F36*K36 -> 0 | O36: =G36*K36 -> 0
A37: 10 | B37: 乐为样品包 | C37: www.Loowi.com/yangpin | F37: 0.0032 | G37: 0.845 | J37: 116 | K37: 1 | L37: =J37 -> 116 | N37: =F37*K37 -> 0.003231 | O37: =G37*K37 -> 0.845
K38: 人民币合计： | L38: =SUM(L28:L37) -> 116 | N38: =SUM(N28:N37) -> 0.003231 | O38: =SUM(O28:O37) -> 0.845

Sheet 发货单
E1: 厦门乐为坊玩具有限公司 | K1: 厦门乐为坊玩具有限公司 | Q1: 厦门乐为坊玩具有限公司
E3: 发货单 | K3: 发货单 | Q3: 发货单
C5: 日期： | D5: =订货单!E5 -> YYYYMMDD | I5: 日期： | J5: =D5 -> YYYYMMDD | O5: 日期： | P5: =D5 -> YYYYMMDD
A6: 买方： | B6: =订货单!C19 -> 0 | E6: 卖方留存联 | G6: =A6 -> 买方： | H6: =B6 -> 0 | K6: 仓储留存联 | M6: =A6 -> 买方： | N6: =B6 -> 0 | Q6: 买方留存联
A7: =型号!A7 -> 序号 | B7: =型号!B7 -> 玩具名称 | C7: =型号!C7 -> 3C认证型号 | D7: =型号!F7 -> 订货号 | E7: 件数 | G7: =A7 -> 序号 | H7: =B7 -> 玩具名称 | I7: =C7 -> 3C认证型号 | J7: =D7 -> 订货号 | K7: =E7 -> 件数 | M7: =G7 -> 序号 | N7: =H7 -> 玩具名称 | O7: =I7 -> 3C认证型号 | P7: =J7 -> 订货号 | Q7: =K7 -> 件数
A8: =型号!A8 -> 1 | B8: =型号!B8 -> 乐为塑菱 | C8: =型号!C8 -> LWSL-TE599 | D8: =型号!F8 -> 00092 | E8: =订货单!K28 -> 0 | G8: =A8 -> 1 | H8: =B8 -> 乐为塑菱 | I8: =C8 -> LWSL-TE599 | J8: =D8 -> 00092 | K8: =E8 -> 0 | M8: =G8 -> 1 | N8: =H8 -> 乐为塑菱 | O8: =I8 -> LWSL-TE599 | P8: =J8 -> 00092 | Q8: =E8 -> 0
A9: =型号!A9 -> 2 | B9: =型号!B9 -> 乐为塑菱 | C9: =型号!C9 -> LWSL523 | D9: =型号!F9 -> 52312 | E9: =订货单!K29 -> 0 | G9: =A9 -> 2 | H9: =B9 -> 乐为塑菱 | I9: =C9 -> LWSL523 | J9: =D9 -> 52312 | K9: =E9 -> 0 | M9: =G9 -> 2 | N9: =H9 -> 乐为塑菱 | O9: =I9 -> LWSL523 | P9: =J9 -> 52312 | Q9: =E9 -> 0
A10: =型号!A10 -> 3 | B10: =型号!B10 -> 乐为魔珠 | C10: =型号!C10 -> LWMZ-XM500 | D10: =型号!F10 -> 00108 | E10: =订货单!K30 -> 0 | G10: =A10 -> 3 | H10: =B10 -> 乐为魔珠 | I10: =C10 -> LWMZ-XM500 | J10: =D10 -> 00108 | K10: =E10 -> 0 | M10: =G10 -> 3 | N10: =H10 -> 乐为魔珠 | O10: =I10 -> LWMZ-XM500 | P10: =J10 -> 00108 | Q10: =E10 -> 0
A11: =型号!A11 -> 4 | B11: =型号!B11 -> 乐为魔珠 | C11: =型号!C11 -> LWMZ296 | D11: =型号!F11 -> 29611 | E11: =订货单!K31 -> 0 | G11: =A11 -> 4 | H11: =B11 -> 乐为魔珠 | I11: =C11 -> LWMZ296 | J11: =D11 -> 29611 | K11: =E11 -> 0 | M11: =G11 -> 4 | N11: =H11 -> 乐为魔珠 | O11: =I11 -> LWMZ296 | P11: =J11 -> 29611 | Q11: =E11 -> 0
A12: =型号!A12 -> 5 | B12: =型号!B12 -> 乐为大魔珠 | C12: =型号!C12 -> LWMZ253D | D12: =型号!F12 -> 25323 | E12: =订货单!K32 -> 0 | G12: =A12 -> 5 | H12: =B12 -> 乐为大魔珠 | I12: =C12 -> LWMZ253D | J12: =D12 -> 25323 | K12: =E12 -> 0 | M12: =G12 -> 5 | N12: =H12 -> 乐为大魔珠 | O12: =I12 -> LWMZ253D | P12: =J12 -> 25323 | Q12: =E12 -> 0
A13: =型号!A13 -> 6 | B13: =型号!B13 -> 乐为大魔珠 | C13: =型号!C13 -> LWMZ296D | D13: =型号!F13 -> 29628 | E13: =订货单!K33 -> 0 | G13: =A13 -> 6 | H13: =B13 -> 乐为大魔珠 | I13: =C13 -> LWMZ296D | J13: =D13 -> 29628 | K13: =E13 -> 0 | M13: =G13 -> 6 | N13: =H13 -> 乐为大魔珠 | O13: =I13 -> LWMZ296D | P13: =J13 -> 29628 | Q13: =E13 -> 0
A14: =型号!A14 -> 7 | B14: =型号!B14 -> 乐为大魔珠 | C14: =型号!C14 -> LWMZ332D | D14: =型号!F14 -> 33229 | E14: =订货单!K34 -> 0 | G14: =A14 -> 7 | H14: =B14 -> 乐为大魔珠 | I14: =C14 -> LWMZ332D | J14: =D14 -> 33229 | K14: =E14 -> 0 | M14: =G14 -> 7 | N14: =H14 -> 乐为大魔珠 | O14: =I14 -> LWMZ332D | P14: =J14 -> 33229 | Q14: =E14 -> 0
A15: =型号!A15 -> 8 | B15: =型号!B15 -> 乐为大魔珠 | C15: =型号!C15 -> LWMZ350D | D15: =型号!F15 -> 35025 | E15: =订货单!K35 -> 0 | G15: =A15 -> 8 | H15: =B15 -> 乐为大魔珠 | I15: =C15 -> LWMZ350D | J15: =D15 -> 35025 | K15: =E15 -> 0 | M15: =G15 -> 8 | N15: =H15 -> 乐为大魔珠 | O15: =I15 -> LWMZ350D | P15: =J15 -> 35025 | Q15: =E15 -> 0
A16: =型号!A16 -> 9 | B16: =型号!B16 -> 乐为大魔珠 | C16: =型号!C16 -> LWMZ1000D | D16: =型号!F16 -> 10015 | E16: =订货单!K36 -> 0 | G16: =A16 -> 9 | H16: =B16 -> 乐为大魔珠 | I16: =C16 -> LWMZ1000D | J16: =D16 -> 10015 | K16: =E16 -> 0 | M16: =G16 -> 9 | N16: =H16 -> 乐为大魔珠 | O16: =I16 -> LWMZ1000D | P16: =J16 -> 10015 | Q16: =E16 -> 0
A17: 10 | B17: 乐为样品包 | E17: 1 | G17: =A17 -> 10 | H17: =B17 -> 乐为样品包 | K17: =E17 -> 1 | M17: =G17 -> 10 | N17: =H17 -> 乐为样品包 | Q17: =K17 -> 1
D18: 总计： | E18: =SUM(E8:E17) -> 1 | J18: 总计： | K18: =SUM(K8:K17) -> 1 | P18: 总计： | Q18: =SUM(Q8:Q17) -> 1
B20: 卖方业务： | C20: 卖方批准： | H20: 卖方仓库： | N20: 买方采购：
B21: 卖方财务： | I21: 买方签收： | N21: 买方仓库： | O21: 买方财务：
B23: 收货人： | C23: =订货单!C20 -> 0
B24: 收货公司： | C24: =订货单!C19 -> 0
B25: 收货地址： | C25: =订货单!C24 -> 0
B26: 物流说明： | C26: 默认德邦物流，到付，自提
